lending/lending_fUSD_20250920
["ID","MTS","AMOUNT","RATE_DAILY","PERIOD"]
[386561621,1758394256206,-500.0,0.00020401,2]
[386561622,1758394256216,-500.0,0.00020401,2]
[386561623,1758394256226,-500.0,0.00020401,2]
[386561624,1758394256236,-500.0,0.00020401,2]
[386561625,1758394256245,-363.792999,0.00020401,2]
[386561626,1758394256254,-500.0,0.00020401,2]
[386561627,1758394256264,-500.0,0.00020401,2]
[386561628,1758394256273,-500.0,0.00020401,2]
[386561629,1758394256282,-500.0,0.00020401,2]
[386561630,1758394256291,-500.0,0.00020401,2]
[386561631,1758394256300,-500.0,0.00020401,2]
[386561632,1758394256309,-363.792999,0.00020401,2]
[386561633,1758394256319,-500.0,0.00020401,2]
[386561634,1758394256328,-151.0,0.00020401,2]
[386561635,1758394256337,-500.0,0.00020401,2]
[386561636,1758394256346,-500.0,0.00020401,2]
[386561637,1758394256355,-500.0,0.00020401,2]
[386561638,1758394256365,-500.0,0.00020401,2]
[386561639,1758394256374,-500.0,0.00020401,2]
[386561640,1758394256383,-151.0,0.00020401,2]
[386561641,1758394256392,-363.792999,0.00020401,2]
[386561642,1758394256401,-500.0,0.00020401,2]
[386561643,1758394256410,-500.0,0.00020401,2]
[386561644,1758394256420,-500.0,0.00020401,2]
[386561645,1758394256429,-500.0,0.00020401,2]
[386561646,1758394256438,-500.0,0.00020401,2]
[386561647,1758394256447,-500.0,0.00020401,2]
[386561648,1758394256457,-151.0,0.00020402,2]
[386561649,1758394256466,-151.0,0.00020402,2]
[386561650,1758394256475,-203.778584,0.00020402,2]
[386561651,1758394256484,-151.0,0.00020402,2]
[386561652,1758394256493,-151.0,0.00020402,2]
[386561653,1758394256502,-151.0,0.00020402,2]
[386561654,1758394256511,-151.0,0.00020402,2]
[386561655,1758394256521,-151.0,0.00020402,2]
[386561656,1758394256530,-151.0,0.00020402,2]
[386561657,1758394256539,-152.005109,0.00020402,2]
[386561658,1758394256548,-151.0,0.00020402,2]
[386561659,1758394256558,-176.407278,0.00020402,2]
[386561660,1758394256567,-500.0,0.00020402,2]
[386561661,1758394256576,-500.0,0.00020402,2]
[386561662,1758394256586,-500.0,0.00020402,2]
[386561663,1758394256595,-500.0,0.00020402,2]
[386561664,1758394256608,-500.0,0.00020402,2]
[386561665,1758394256617,-500.0,0.00020402,2]
[386561666,1758394256626,-500.0,0.00020402,2]
[386561667,1758394256635,-500.0,0.00020402,2]
[386561668,1758394256645,-500.0,0.00020402,2]
[386561669,1758394256654,-500.0,0.00020402,2]
[386561670,1758394256663,-500.0,0.00020402,2]
[386561671,1758394256672,-500.0,0.00020402,2]
[386561672,1758394256682,-500.0,0.00020402,2]
[386561673,1758394256692,-500.0,0.00020402,2]
[386561674,1758394256701,-500.0,0.00020402,2]
[386561675,1758394256710,-500.0,0.00020402,2]
[386561676,1758394256719,-500.0,0.00020402,2]
[386561677,1758394256728,-500.0,0.00020402,2]
[386561678,1758394256737,-500.0,0.00020402,2]
[386561679,1758394256746,-500.0,0.00020402,2]
[386561680,1758394256755,-500.0,0.00020402,2]
[386561681,1758394256764,-500.0,0.00020402,2]
[386561682,1758394256774,-500.0,0.00020402,2]
[386561683,1758394256784,-500.0,0.00020402,2]
[386561684,1758394256793,-500.0,0.00020402,2]
[386561685,1758394256803,-500.0,0.00020402,2]
[386561686,1758394256813,-500.0,0.00020402,2]
[386561687,1758394256822,-500.0,0.00020402,2]
[386561688,1758394256832,-152.76708,0.00020402,2]
[386561689,1758394256842,-500.0,0.00020402,2]
[386561690,1758394256851,-500.0,0.00020402,2]
[386561691,1758394256860,-500.0,0.00020402,2]
[386561692,1758394256869,-500.0,0.00020402,2]
[386561693,1758394256880,-500.0,0.00020402,2]
[386561694,1758394256889,-500.0,0.00020402,2]
[386561695,1758394256898,-500.0,0.00020402,2]
[386561696,1758394256908,-500.0,0.00020402,2]
[386561697,1758394256917,-500.0,0.00020402,2]
[386561698,1758394256926,-500.0,0.00020402,2]
[386561699,1758394256936,-500.0,0.00020402,2]
[386561700,1758394256945,-500.0,0.00020402,2]
[386561701,1758394256955,-500.0,0.00020402,2]
[386561702,1758394256963,-500.0,0.00020402,2]
[386561703,1758394256972,-500.0,0.00020402,2]
[386561704,1758394256982,-500.0,0.00020402,2]
[386561705,1758394256991,-500.0,0.00020402,2]
[386561706,1758394257001,-500.0,0.00020402,2]
[386561707,1758394257010,-500.0,0.00020402,2]
[386561708,1758394257020,-500.0,0.00020402,2]
[386561709,1758394257029,-500.0,0.00020402,2]
[386561710,1758394257038,-500.0,0.00020402,2]
[386561711,1758394257047,-500.0,0.00020402,2]
[386561712,1758394257056,-500.0,0.00020402,2]
[386561713,1758394257065,-500.0,0.00020402,2]
[386561714,1758394257074,-500.0,0.00020402,2]
[386561715,1758394257083,-851.0,0.00020402,2]
[386561716,1758394257092,-151.134213,0.00020402,2]
[386561717,1758394257102,-151.134213,0.00020402,2]
[386561718,1758394257111,-151.134213,0.00020402,2]
[386561719,1758394257120,-151.0,0.00020402,2]
[386561720,1758394257129,-151.134213,0.00020402,2]
[386561721,1758394257139,-151.0,0.00020402,2]
[386561722,1758394257148,-151.0,0.00020402,2]
[386561723,1758394257158,-275.003483,0.00020402,2]
[386561724,1758394257167,-151.0,0.00020402,2]
[386561725,1758394257177,-151.0,0.00020402,2]
[386561726,1758394257187,-151.0,0.00020402,2]
[386561727,1758394257196,-151.0,0.00020402,2]
[386561728,1758394257206,-533.52588539,0.00020411,2]
[386561729,1758394257215,-201.5708701,0.00020411,2]
[386561730,1758394257224,-151.17815256,0.00020411,2]
[386561731,1758394257233,-151.17815256,0.00020411,2]
[386561732,1758394257242,-260.0,0.00020415,2]
[386561733,1758394257251,-151.0,0.00020415,2]
[386561734,1758394257260,-151.0,0.00020415,2]
[386561735,1758394257270,-151.0,0.00020415,2]
[386561736,1758394257279,-151.0,0.00020415,2]
[386561737,1758394257288,-151.0,0.00020415,2]
[386561738,1758394257296,-151.0,0.00020415,2]
[386561739,1758394257305,-151.0,0.00020415,2]
[386561740,1758394257315,-294.55578472,0.00020454,2]
[386561741,1758394257324,-546.30320301,0.00020473,2]
[386561742,1758394257334,-500.0,0.00020473,2]
[386561743,1758394257343,-500.0,0.00020473,2]
[386561744,1758394257353,-176.95365662,0.00020473,2]
[386561745,1758394257361,-587.84125145,0.00020473,2]
[386561746,1758394257371,-500.0,0.00020473,2]
[386561747,1758394257380,-165.32949263,0.00020473,2]
[386561748,1758394257390,-500.0,0.00020473,2]
[386561749,1758394257399,-500.0,0.00020473,2]
[386561750,1758394257408,-500.0,0.00020473,2]
[386561751,1758394257417,-500.0,0.00020473,2]
[386561752,1758394257426,-500.0,0.00020473,2]
[386561753,1758394257435,-160.93800513,0.00020473,2]
[386561754,1758394257445,-500.0,0.00020473,2]
[386561755,1758394257454,-500.0,0.00020473,2]
[386561756,1758394257463,-500.0,0.00020473,2]
[386561757,1758394257472,-500.0,0.00020473,2]
[386561758,1758394257481,-500.0,0.00020473,2]
[386561759,1758394257491,-692.0,0.00020473,2]
[386561760,1758394257499,-500.0,0.00020473,2]
[386561761,1758394257509,-500.0,0.00020473,2]
[386561762,1758394257518,-500.0,0.00020473,2]
[386561763,1758394257527,-500.0,0.00020473,2]
[386561764,1758394257537,-500.0,0.00020473,2]
[386561765,1758394257546,-500.0,0.00020473,2]
[386561766,1758394257556,-500.0,0.00020473,2]
[386561767,1758394257565,-500.0,0.00020473,2]
[386561768,1758394257574,-500.0,0.00020473,2]
[386561769,1758394257583,-500.0,0.00020473,2]
[386561770,1758394257593,-500.0,0.00020473,2]
[386561771,1758394257602,-500.0,0.00020473,2]
[386561772,1758394257611,-500.0,0.00020473,2]
[386561773,1758394257620,-500.0,0.00020473,2]
[386561774,1758394257629,-500.0,0.00020473,2]
[386561775,1758394257647,-500.0,0.00020473,2]
[386561776,1758394257658,-500.0,0.00020473,2]
[386561777,1758394257667,-500.0,0.00020473,2]
[386561778,1758394257676,-500.0,0.00020473,2]
[386561779,1758394257686,-500.0,0.00020473,2]
[386561780,1758394257695,-500.0,0.00020473,2]
[386561781,1758394257706,-500.0,0.00020473,2]
[386561782,1758394257715,-500.0,0.00020473,2]
[386561783,1758394257725,-500.0,0.00020473,2]
[386561784,1758394257735,-500.0,0.00020473,2]
[386561785,1758394257745,-500.0,0.00020473,2]
[386561786,1758394257754,-500.0,0.00020473,2]
[386561787,1758394257763,-500.0,0.00020473,2]
[386561788,1758394257773,-500.0,0.00020473,2]
[386561789,1758394257782,-500.0,0.00020473,2]
[386561790,1758394257791,-500.0,0.00020473,2]
[386561791,1758394257801,-500.0,0.00020473,2]
[386561792,1758394257811,-500.0,0.00020473,2]
[386561793,1758394257820,-500.0,0.00020473,2]
[386561794,1758394257830,-712.0,0.00020473,2]
[386561795,1758394257839,-199.38959899,0.00020493,2]
[386561796,1758394257849,-168.0,0.00020493,2]
[386561797,1758394257858,-243.0,0.000205,2]
[386561798,1758394257868,-168.0,0.000205,2]
[386561799,1758394257877,-1000.0,0.00020521,2]
[386561800,1758394257887,-500.0,0.00020547,2]
[386561801,1758394257896,-447.0,0.00020547,2]
[386561802,1758394257906,-3003.0,0.00020547,2]
[386561803,1758394257915,-500.0,0.00020547,2]
[386561804,1758394257925,-176.29469164,0.00020547,2]
[386561805,1758394257935,-150.0,0.00020547,2]
[386561806,1758394257945,-150.0,0.00020547,2]
[386561807,1758394257955,-500.0,0.00020547,2]
[386561808,1758394257964,-500.0,0.00020547,2]
[386561809,1758394257973,-583.0,0.00020547,2]
[386561810,1758394257983,-500.0,0.00020547,2]
[386561811,1758394257992,-427.0,0.00020547,2]
[386561812,1758394258002,-150.0,0.00020547,2]
[386561813,1758394258011,-426.0,0.00020547,2]
[386561814,1758394258021,-1088.0,0.00020547,2]
[386561815,1758394258031,-538.0,0.00020547,2]
[386561816,1758394258041,-150.0,0.00020547,2]
[386561817,1758394258051,-578.0,0.00020547,2]
[386561818,1758394258061,-150.0,0.00020547,2]
[386561819,1758394258070,-178.634187,0.00020547,2]
[386561820,1758394258079,-500.0,0.00020548,2]
[386561821,1758394258089,-500.0,0.00020548,2]
[386561822,1758394258099,-13424.59,0.00020548,2]
[386561823,1758394258108,-500.0,0.00020548,2]
[386561824,1758394258117,-500.0,0.00020548,2]
[386561825,1758394258126,-500.0,0.00020548,2]
[386561826,1758394258136,-500.0,0.00020548,2]
[386561827,1758394258145,-500.0,0.00020548,2]
[386561828,1758394258155,-150.0,0.00020548,2]
[386561829,1758394258164,-9580.47886338,0.00020555,2]
[386561830,1758394258174,-294.55578472,0.00020566,2]
[386561831,1758394258183,-159.4463529,0.00020585,2]
[386561832,1758394258194,-260.0,0.00020585,2]
[386561833,1758394258204,-165.33,0.00020593,2]
[386561834,1758394258213,-168.0,0.00020623,2]
[386561835,1758394258222,-201.5708701,0.0002063,2]
[386561836,1758394258233,-163.3867032,0.0002063,2]
[386561837,1758394258242,-151.17815256,0.0002063,2]
[386561838,1758394258252,-151.17815256,0.0002063,2]
[386561839,1758394258261,-168.0,0.0002064,2]
[386561840,1758394258270,-1511.62155,0.0002065,2]
[386561841,1758394258280,-300.0,0.0002065,2]
[386561842,1758394258289,-195.0,0.0002065,2]
[386561843,1758394258298,-1309.51,0.0002065,3]
[386561844,1758394258307,-250.0,0.0002065,2]
[386561845,1758394258317,-2500.0,0.0002065,2]
[386561846,1758394258327,-300.0,0.0002065,2]
[386561847,1758394258336,-168.0,0.0002065,2]
[386561848,1758394258345,-260.0,0.00020671,2]
[386561849,1758394258354,-294.55578472,0.00020677,2]
[386561850,1758394258363,-193.0,0.00020683,2]
[386561851,1758394258372,-500.0,0.00020683,2]
[386561852,1758394258382,-500.0,0.00020683,2]
[386561853,1758394258393,-250.0,0.00020683,2]
[386561854,1758394258402,-300.0,0.00020683,2]
[386561855,1758394258412,-195.0,0.00020683,2]
[386561856,1758394258421,-2010.23929734,0.00020683,3]
[386561857,1758394258431,-300.0,0.00020683,2]
[386561858,1758394258440,-300.0,0.00020683,2]
[386561859,1758394258450,-300.0,0.00020683,2]
[386561860,1758394258460,-195.0,0.00020683,2]
[386561861,1758394258469,-500.0,0.00020683,2]
[386561862,1758394258478,-500.0,0.00020683,2]
[386561863,1758394258487,-515.15180855,0.00020683,2]
[386561864,1758394258497,-250.0,0.00020683,2]
[386561865,1758394258506,-2500.0,0.00020683,2]
[386561866,1758394258516,-2500.0,0.00020683,2]
[386561867,1758394258526,-420.0,0.00020696,2]
[386561868,1758394258535,-800.0,0.000207,3]
[386561869,1758394258544,-169.76,0.000207,2]
[386561870,1758394258554,-384.0,0.000207,2]
[386561871,1758394258564,-150.6568262,0.00020716,2]
[386561872,1758394258573,-186.04484724,0.0002075,2]
[386561873,1758394258582,-294.55578472,0.00020789,2]
[386561874,1758394258591,-1088.0,0.00020789,2]
[386561875,1758394258606,-2000.0,0.00020796,2]
[386561876,1758394258615,-1680.0,0.00020796,2]
[386561877,1758394258624,-500.0,0.00020821,2]
[386561878,1758394258634,-447.0,0.00020821,2]
[386561879,1758394258645,-3003.0,0.00020821,2]
[386561880,1758394258655,-500.0,0.00020821,2]
[386561881,1758394258665,-150.0,0.00020821,2]
[386561882,1758394258674,-291.57107923,0.00020821,2]
[386561883,1758394258684,-500.0,0.00020821,2]
[386561884,1758394258695,-259.66526377,0.00020821,2]
[386561885,1758394258704,-583.0,0.00020821,2]
[386561886,1758394258714,-500.0,0.00020821,2]
[386561887,1758394258723,-427.0,0.00020821,2]
[386561888,1758394258738,-150.0,0.00020821,2]
[386561889,1758394258747,-426.0,0.00020821,2]
[386561890,1758394258757,-1088.0,0.00020821,2]
[386561891,1758394258767,-538.0,0.00020821,2]
[386561892,1758394258776,-201.9663934,0.00020821,2]
[386561893,1758394258786,-578.0,0.00020821,2]
[386561894,1758394258795,-150.0,0.00020821,2]
[386561895,1758394258804,-500.0,0.00020822,2]
[386561896,1758394258814,-500.0,0.00020822,2]
[386561897,1758394258824,-500.0,0.00020822,2]
[386561898,1758394258833,-500.0,0.00020822,2]
[386561899,1758394258842,-500.0,0.00020822,2]
[386561900,1758394258853,-500.0,0.00020822,2]
[386561901,1758394258862,-500.0,0.00020822,2]
[386561902,1758394258871,-150.0,0.00020822,2]
[386561903,1758394258881,-168.0,0.00020829,2]
[386561904,1758394258891,-151.17815256,0.00020849,2]
[386561905,1758394258900,-151.17815256,0.00020849,2]
[386561906,1758394258910,-20840.64975314,0.0002085,2]
[386561907,1758394258919,-151.0,0.0002085,2]
[386561908,1758394258928,-151.0,0.0002085,2]
[386561909,1758394258938,-159.291042,0.0002085,2]
[386561910,1758394258947,-159.291042,0.0002085,2]
[386561911,1758394258957,-159.291042,0.0002085,2]
[386561912,1758394258967,-159.291042,0.0002085,2]
[386561913,1758394258976,-156.652599,0.0002085,2]
[386561914,1758394258986,-151.134213,0.0002085,2]
[386561915,1758394258995,-151.134213,0.0002085,2]
[386561916,1758394259005,-151.134213,0.0002085,2]
[386561917,1758394259015,-151.0,0.0002085,2]
[386561918,1758394259024,-151.134213,0.0002085,2]
[386561919,1758394259034,-151.0,0.0002085,2]
[386561920,1758394259043,-181.340096,0.0002085,2]
[386561921,1758394259053,-155.969829,0.0002085,2]
[386561922,1758394259063,-156.113677,0.0002085,2]
[386561923,1758394259073,-151.0,0.0002085,2]
[386561924,1758394259082,-168.987501,0.0002085,2]
[386561925,1758394259092,-151.0,0.0002085,2]
[386561926,1758394259101,-151.0,0.0002085,2]
[386561927,1758394259111,-151.0,0.0002085,2]
[386561928,1758394259120,-151.0,0.0002085,2]
[386561929,1758394259129,-151.0,0.0002085,2]
[386561930,1758394259139,-151.0,0.0002085,2]
[386561931,1758394259148,-151.0,0.0002085,2]
[386561932,1758394259158,-184.788242,0.0002085,2]
[386561933,1758394259167,-151.0,0.0002085,2]
[386561934,1758394259177,-151.0,0.0002085,2]
[386561935,1758394259187,-151.0,0.0002085,2]
[386561936,1758394259196,-151.0,0.0002085,2]
[386561937,1758394259205,-151.0,0.0002085,2]
[386561938,1758394259215,-338.887647,0.0002085,2]
[386561939,1758394259224,-338.887647,0.0002085,2]
[386561940,1758394259234,-338.887647,0.0002085,2]
[386561941,1758394259243,-338.887647,0.0002085,2]
[386561942,1758394259253,-151.0,0.0002085,2]
[386561943,1758394259263,-696.1233,0.0002085,2]
[386561944,1758394259273,-696.1233,0.0002085,2]
[386561945,1758394259282,-696.1233,0.0002085,2]
[386561946,1758394259292,-696.1233,0.0002085,2]
[386561947,1758394259301,-151.0,0.0002085,2]
[386561948,1758394259623,-165.103787,0.0002085,2]
[386561949,1758394259634,-151.0,0.0002085,2]
[386561950,1758394259643,-151.0,0.0002085,2]
[386561951,1758394259653,-151.0,0.0002085,2]
[386561952,1758394259663,-288.55604,0.0002085,2]
[386561953,1758394259672,-288.55604,0.0002085,2]
[386561954,1758394259682,-288.55604,0.0002085,2]
[386561955,1758394259691,-151.0,0.0002085,2]
[386561956,1758394259700,-288.55604,0.0002085,2]
[386561957,1758394259710,-289.588918,0.0002085,2]
[386561958,1758394259720,-289.588918,0.0002085,2]
[386561959,1758394259730,-289.588918,0.0002085,2]
[386561960,1758394259739,-289.588918,0.0002085,2]
[386561961,1758394259748,-870.049768,0.0002085,2]
[386561962,1758394259758,-870.049768,0.0002085,2]
[386561963,1758394259768,-870.049768,0.0002085,2]
[386561964,1758394259777,-870.049768,0.0002085,2]
[386561965,1758394259786,-151.0,0.0002085,2]
[386561966,1758394259796,-151.0,0.0002085,2]
[386561967,1758394259805,-738.799636,0.0002085,2]
[386561968,1758394259815,-738.799636,0.0002085,2]
[386561969,1758394259825,-738.799636,0.0002085,2]
[386561970,1758394259835,-153.812577,0.0002085,2]
[386561971,1758394259845,-738.799636,0.0002085,2]
[386561972,1758394259854,-151.0,0.0002085,2]
[386561973,1758394259864,-151.0,0.0002085,2]
[386561974,1758394259874,-151.0,0.0002085,2]
[386561975,1758394259884,-151.0,0.0002085,2]
[386561976,1758394259894,-151.0,0.0002085,2]
[386561977,1758394259904,-151.0,0.0002085,2]
[386561978,1758394259913,-151.0,0.0002085,2]
[386561979,1758394259923,-151.0,0.0002085,2]
[386561980,1758394259933,-151.0,0.0002085,2]
[386561981,1758394259942,-215.73103,0.0002085,2]
[386561982,1758394259952,-215.73103,0.0002085,2]
[386561983,1758394259962,-154.452331,0.0002085,2]
[386561984,1758394259971,-215.73103,0.0002085,2]
[386561985,1758394259981,-215.73103,0.0002085,2]
[386561986,1758394259991,-151.0,0.0002085,2]
[386561987,1758394260001,-151.0,0.0002085,2]
[386561988,1758394260011,-151.0,0.0002085,2]
[386561989,1758394260021,-151.0,0.0002085,2]
[386561990,1758394260031,-151.0,0.0002085,2]
[386561991,1758394260041,-245.643242,0.0002085,2]
[386561992,1758394260051,-222.727003,0.0002085,2]
[386561993,1758394260062,-151.0,0.0002085,2]
[386561994,1758394260073,-151.0,0.0002085,2]
[386561995,1758394260084,-151.0,0.0002085,2]
[386561996,1758394260094,-151.0,0.0002085,2]
[386561997,1758394260104,-151.0,0.0002085,2]
[386561998,1758394260114,-151.0,0.0002085,2]
[386561999,1758394260124,-151.0,0.0002085,2]
[386562000,1758394260134,-151.0,0.0002085,2]
[386562001,1758394260143,-151.0,0.0002085,2]
[386562002,1758394260153,-169.300728,0.0002085,2]
[386562003,1758394260163,-151.0,0.0002085,2]
[386562004,1758394260173,-232.028244,0.0002085,2]
[386562005,1758394260183,-232.028244,0.0002085,2]
[386562006,1758394260192,-157.03888,0.0002085,2]
[386562007,1758394260202,-232.028244,0.0002085,2]
[386562008,1758394260212,-232.028244,0.0002085,2]
[386562009,1758394260222,-151.0,0.0002085,2]
[386562010,1758394260232,-151.0,0.0002085,2]
[386562011,1758394260242,-231.849607,0.0002085,2]
[386562012,1758394260251,-151.0,0.0002085,2]
[386562013,1758394260261,-705.599478,0.0002085,2]
[386562014,1758394260271,-705.599478,0.0002085,2]
[386562015,1758394260280,-655.00481,0.0002085,2]
[386562016,1758394260290,-151.0,0.0002085,2]
[386562017,1758394260299,-705.599478,0.0002085,2]
[386562018,1758394260309,-655.00481,0.0002085,2]
[386562019,1758394260319,-705.599478,0.0002085,2]
[386562020,1758394260328,-655.00481,0.0002085,2]
[386562021,1758394260338,-151.0,0.0002085,2]
[386562022,1758394260347,-655.00481,0.0002085,2]
[386562023,1758394260356,-151.0,0.0002085,2]
[386562024,1758394260366,-201.1994,0.0002085,2]
[386562025,1758394260375,-228.417861,0.0002085,2]
[386562026,1758394260384,-201.1994,0.0002085,2]
[386562027,1758394260394,-228.417861,0.0002085,2]
[386562028,1758394260403,-201.1994,0.0002085,2]
[386562029,1758394260412,-228.417861,0.0002085,2]
[386562030,1758394260421,-174.864317,0.0002085,2]
[386562031,1758394260431,-201.1994,0.0002085,2]
[386562032,1758394260440,-228.417861,0.0002085,2]
[386562033,1758394260450,-174.864317,0.0002085,2]
[386562034,1758394260462,-174.864317,0.0002085,2]
[386562035,1758394260474,-174.864317,0.0002085,2]
[386562036,1758394260484,-151.0,0.0002085,2]
[386562037,1758394260493,-351.022237,0.0002085,2]
[386562038,1758394260503,-269.219197,0.0002085,2]
[386562039,1758394260513,-351.022237,0.0002085,2]
[386562040,1758394260522,-351.022237,0.0002085,2]
[386562041,1758394260531,-351.022237,0.0002085,2]
[386562042,1758394260541,-151.0,0.0002085,2]
[386562043,1758394260550,-151.0,0.0002085,2]
[386562044,1758394260560,-151.0,0.0002085,2]
[386562045,1758394260570,-151.0,0.0002085,2]
[386562046,1758394260580,-171.905783,0.0002085,2]
[386562047,1758394260589,-215.921728,0.0002085,2]
[386562048,1758394260600,-215.921728,0.0002085,2]
[386562049,1758394260611,-151.0,0.0002085,2]
[386562050,1758394260620,-215.921728,0.0002085,2]
[386562051,1758394260630,-632.834511,0.0002085,2]
[386562052,1758394260639,-215.921728,0.0002085,2]
[386562053,1758394260650,-632.834511,0.0002085,2]
[386562054,1758394260660,-632.834511,0.0002085,2]
[386562055,1758394260669,-632.834511,0.0002085,2]
[386562056,1758394260684,-156.677305,0.0002085,2]
[386562057,1758394260694,-151.0,0.0002085,2]
[386562058,1758394260704,-156.677305,0.0002085,2]
[386562059,1758394260714,-358.728959,0.0002085,2]
[386562060,1758394260725,-517.312581,0.0002085,2]
[386562061,1758394260734,-358.728959,0.0002085,2]
[386562062,1758394260744,-156.677305,0.0002085,2]
[386562063,1758394260754,-151.0,0.0002085,2]
[386562064,1758394260763,-517.312581,0.0002085,2]
[386562065,1758394260774,-358.728959,0.0002085,2]
[386562066,1758394260784,-156.677305,0.0002085,2]
[386562067,1758394260794,-151.0,0.0002085,2]
[386562068,1758394260803,-517.312581,0.0002085,2]
[386562069,1758394260813,-358.728959,0.0002085,2]
[386562070,1758394260823,-517.312581,0.0002085,2]
[386562071,1758394260833,-159.763725,0.0002085,2]
[386562072,1758394260842,-501.433195,0.0002085,2]
[386562073,1758394260852,-159.763725,0.0002085,2]
[386562074,1758394260862,-501.433195,0.0002085,2]
[386562075,1758394260871,-159.763725,0.0002085,2]
[386562076,1758394260880,-501.433195,0.0002085,2]
[386562077,1758394260890,-151.0,0.0002085,2]
[386562078,1758394260899,-159.763725,0.0002085,2]
[386562079,1758394260909,-501.433195,0.0002085,2]
[386562080,1758394260919,-270.611087,0.0002085,2]
[386562081,1758394260929,-151.0,0.0002085,2]
[386562082,1758394260939,-403.619431,0.0002085,2]
[386562083,1758394260948,-403.619431,0.0002085,2]
[386562084,1758394260958,-151.0,0.0002085,2]
[386562085,1758394260968,-403.619431,0.0002085,2]
[386562086,1758394260977,-394.705427,0.0002085,2]
[386562087,1758394260987,-151.0,0.0002085,2]
[386562088,1758394260996,-403.619431,0.0002085,2]
[386562089,1758394261006,-394.705427,0.0002085,2]
[386562090,1758394261015,-151.0,0.0002085,2]
[386562091,1758394261025,-394.705427,0.0002085,2]
[386562092,1758394261034,-394.705427,0.0002085,2]
[386562093,1758394261044,-347.526682,0.0002085,2]
[386562094,1758394261053,-347.526682,0.0002085,2]
[386562095,1758394261063,-347.526682,0.0002085,2]
[386562096,1758394261073,-151.0,0.0002085,2]
[386562097,1758394261082,-347.526682,0.0002085,2]
[386562098,1758394261091,-151.0,0.0002085,2]
[386562099,1758394261101,-151.0,0.0002085,2]
[386562100,1758394261112,-1174.268044,0.0002085,2]
[386562101,1758394261125,-1174.268044,0.0002085,2]
[386562102,1758394261135,-151.0,0.0002085,2]
[386562103,1758394261145,-1174.268044,0.0002085,2]
[386562104,1758394261154,-608.985217,0.0002085,2]
[386562105,1758394261165,-151.0,0.0002085,2]
[386562106,1758394261175,-151.945361,0.0002085,2]
[386562107,1758394261185,-608.985217,0.0002085,2]
[386562108,1758394261195,-1174.268044,0.0002085,2]
[386562109,1758394261205,-608.985217,0.0002085,2]
[386562110,1758394261215,-608.985217,0.0002085,2]
[386562111,1758394261225,-1647.211053,0.0002085,2]
[386562112,1758394261234,-6279.119661,0.0002085,2]
[386562113,1758394261244,-1647.211053,0.0002085,2]
[386562114,1758394261253,-151.0,0.0002085,2]
[386562115,1758394261263,-6279.119661,0.0002085,2]
[386562116,1758394261273,-1647.211053,0.0002085,2]
[386562117,1758394261283,-151.0,0.0002085,2]
[386562118,1758394261293,-6279.119661,0.0002085,2]
[386562119,1758394261305,-251.702256,0.0002085,2]
[386562120,1758394261314,-151.0,0.0002085,2]